bitfinex/quotes_SOLUSD_20260308
["timestamp","ask_amount","ask_price","bid_price","bid_amount"]
[1772996864669,0.46732168,81.737,81.704,12.23930284]
[1772996865369,0.46732168,81.737,81.7,12.23985038]
[1772996865752,42.81974111,81.738,81.649,0.49174027]
[1772996865753,0.46732168,81.709,81.649,0.49174027]
[1772996865951,0.46732168,81.729,81.652,0.49174027]
[1772996866370,0.46732168,81.729,81.653,0.49174027]
[1772996867162,0.46732168,81.727,81.658,0.28432314]
[1772996867355,0.46732168,81.727,81.661,0.49174027]
[1772996867757,0.46732168,81.727,81.666,0.49174027]
[1772996867960,0.46732168,81.727,81.668,0.49174027]
[1772996869171,0.46732168,81.732,81.673,0.49174027]
[1772996869475,0.46732168,81.732,81.674,0.49174027]
[1772996871183,0.46732168,81.732,81.677,0.49174027]
[1772996871675,12.2325416,81.75,81.679,0.77606341]
[1772996871861,12.2325416,81.75,81.684,0.49174027]
[1772996872168,12.2325416,81.75,81.682,4.82477569]
[1772996872169,12.2325416,81.75,81.687,0.49174027]
[1772996872372,30.57648991,81.763,81.689,0.49174027]
[1772996872373,12.23062058,81.762,81.689,0.49174027]
[1772996872877,12.23062058,81.762,81.692,0.49174027]
[1772996873073,42.80717203,81.762,81.692,0.49174027]
[1772996873268,42.80717203,81.762,81.695,0.49174027]
[1772996873269,30.57655145,81.762,81.695,0.49174027]
[1772996873859,0.46732168,81.761,81.695,0.49174027]
[1772996875981,0.46732168,81.729,81.672,0.49174027]
[1772996877978,0.46732168,81.727,81.675,0.49174027]
[1772996880585,0.46732168,81.725,81.678,0.49174027]
[1772996882089,0.46732168,81.735,81.678,0.49174027]
[1772996882386,0.46732168,81.735,81.681,0.49174027]
[1772996882580,12.70198247,81.735,81.683,0.14216157]
[1772996882778,0.46732168,81.734,81.684,0.49174027]
[1772996883818,0.46732168,81.734,81.687,0.49175936]
[1772996885319,0.45224369,81.741,81.687,0.49175936]
[1772996886596,0.45224369,81.752,81.693,0.47172626]
[1772996891307,0.45224369,81.775,81.698,0.47172626]
[1772996891523,0.45224369,81.775,81.703,0.47172626]
[1772996891705,0.45224369,81.775,81.704,0.47172626]
[1772996893929,4.69781515,81.78,81.708,3.69383402]
[1772996893930,0.45224369,81.773,81.708,3.69383402]
[1772996894108,0.45224369,81.773,81.71,0.47172626]
[1772996894827,0.45224369,81.769,81.71,0.47172626]
[1772996895519,0.45224369,81.769,81.713,0.47172626]
[1772996896025,0.45224369,81.767,81.716,0.47172626]
[1772996896922,0.45224369,81.767,81.714,42.83231758]
[1772996896923,0.45224369,81.777,81.719,0.47172626]
[1772996897711,0.1,81.78,81.719,0.47172626]
[1772996897922,0.1,81.8,81.73,4.82477569]
[1772996898208,0.1,81.8,81.747,0.47172626]
[1772996898209,0.45224369,81.799,81.747,0.47172626]
[1772996898414,0.1,81.8,81.757,0.47172626]
[1772996899011,0.55021859,81.84,81.81,0.49779108]
[1772996899220,0.55021859,81.82,81.775,0.49779108]
[1772996899429,0.1,81.82,81.775,0.49779108]
[1772996900141,0.55021859,81.82,81.781,0.49779108]
[1772996903730,0.55021859,81.82,81.787,0.49779108]
[1772996903731,0.1,81.82,81.787,0.49779108]
[1772996903914,0.45021859,81.839,81.787,0.49779108]
[1772996904114,0.45021859,81.839,81.793,0.49779108]
[1772996904342,0.1,81.85,81.798,0.49779108]
[1772996904647,0.55021859,81.85,81.799,0.49779108]
[1772996905016,0.55021859,81.85,81.798,0.14216157]
[1772996905017,0.1,81.85,81.804,0.49779108]
[1772996905217,0.1,81.85,81.805,0.49779108]
[1772996906041,0.45021859,81.849,81.805,0.49779108]
[1772996906216,0.45021859,81.849,81.804,0.28432314]
[1772996906645,0.45021859,81.839,81.784,0.49779108]
[1772996907227,0.45021859,81.837,81.784,0.49779108]
[1772996908254,0.45021859,81.837,81.785,12.22718102]
[1772996908427,0.45021859,81.837,81.787,0.49779108]
[1772996909329,0.45021859,81.837,81.79,0.49779108]
[1772996910845,0.45021859,81.837,81.789,0.28432314]
[1772996911148,0.45021859,81.829,81.779,12.22799287]
[1772996911345,4.59781515,81.83,81.779,12.22799287]
[1772996911346,0.45021859,81.827,81.78,0.28432314]
[1772996912639,0.45021859,81.819,81.762,0.49779108]
[1772996912949,0.47957935,81.809,81.762,0.49779108]
[1772996913330,0.47957935,81.807,81.764,0.28432314]
[1772996913534,0.47957935,81.815,81.765,0.45988609]
[1772996914942,0.47957935,81.815,81.768,0.45988609]
[1772996915463,0.47957935,81.813,81.768,0.45988609]
[1772996916151,4.59781515,81.84,81.767,0.28432314]
[1772996916152,0.47957935,81.829,81.771,0.45988609]
[1772996916355,0.47957935,81.846,81.776,0.28432314]
[1772996916549,0.47957935,81.846,81.777,0.45988609]
[1772996916737,0.47957935,81.846,81.78,0.45988609]
[1772996916938,0.47957935,81.844,81.783,0.45988609]
[1772996917346,12.21821736,81.845,81.783,0.45988609]
[1772996917347,0.47957935,81.839,81.783,0.45988609]
[1772996918760,0.47957935,81.837,81.786,0.45988609]
[1772996919052,0.47957935,81.829,81.786,0.45988609]
[1772996920960,0.47957935,81.827,81.789,0.45988609]
[1772996921133,0.47957935,81.827,81.788,0.28432314]
[1772996921134,0.47957935,81.819,81.788,0.28432314]
[1772996921534,0.47957935,81.819,81.788,0.74420923]
[1772996921748,0.47957935,81.819,81.789,0.45988609]
[1772996922533,0.47957935,81.826,81.789,0.45988609]
[1772996922736,0.47957935,81.838,81.789,0.45988609]
[1772996923144,0.47957935,81.838,81.792,0.45988609]
[1772996925356,0.47957935,81.849,81.794,0.45988609]
[1772996925542,0.47957935,81.849,81.795,0.45988609]
[1772996925742,0.47957935,81.848,81.795,0.45988609]
[1772996926555,4.58976159,81.84,81.795,0.45988609]
[1772996926751,0.47957935,81.839,81.795,0.45988609]
[1772996927648,0.47957935,81.837,81.797,0.28432314]
[1772996928367,0.47957935,81.819,81.756,0.45988609]
[1772996928580,0.47957935,81.809,81.756,0.45988609]
[1772996928748,0.47957935,81.809,81.758,3.69383402]
[1772996928947,0.47957935,81.809,81.76,0.45988609]
[1772996929875,0.47957935,81.807,81.76,0.45988609]
[1772996930048,0.47957935,81.807,81.763,0.45988609]
[1772996933668,0.47957935,81.805,81.766,0.45988609]
[1772996936270,0.47957935,81.805,81.769,0.45988609]
[1772996937174,0.47957935,81.803,81.769,0.45988609]
[1772996940483,0.47957935,81.803,81.772,0.45988609]
[1772996940863,0.47957935,81.801,81.772,0.45988609]
[1772996943490,0.49341026,81.799,81.774,0.28432314]
[1772996943890,0.49341026,81.799,81.774,0.76708914]
[1772996944074,0.49341026,81.799,81.775,0.482766]
[1772996946191,0.47682025,81.797,81.76,0.48814854]
[1772996950594,0.47682025,81.795,81.763,0.48814854]
[1772996952700,0.47682025,81.795,81.746,104.9]
[1772996952701,0.47682025,81.804,81.765,0.77247168]
[1772996952901,0.47682025,81.804,81.766,0.48814854]
[1772996954799,0.47682025,81.804,81.765,0.28432314]
[1772996954800,12.22449054,81.803,81.767,12.22987268]
[1772996954986,0.47682025,81.799,81.768,0.28432314]
[1772996957106,0.47682025,81.797,81.769,12.22957355]
[1772996958403,12.2255367,81.796,81.769,12.22957355]
[1772996958618,0.47682025,81.795,81.769,12.22957355]
[1772996960710,0.47682025,81.795,81.77,0.48814854]
[1772996963200,0.47682025,81.795,81.772,0.48814854]
[1772996963397,0.47682025,81.811,81.773,0.48814854]
[1772996965523,0.47682025,81.811,81.776,0.48814854]
[1772996966118,0.47682025,81.809,81.776,0.48814854]
[1772996967414,12.22374339,81.808,81.777,12.22837717]
[1772996967602,0.47682025,81.807,81.779,0.48814854]
[1772996969920,0.47682025,81.807,81.781,0.48814854]
[1772996972019,12.70082456,81.807,81.782,12.22762955]
[1772996972218,0.47682025,81.806,81.783,0.48814854]
[1772996976427,0.47682025,81.806,81.784,12.22733052]
[1772996976624,0.47682025,81.806,81.785,0.46559605]
[1772996978601,0.47682025,81.806,81.78,30.56982147]
[1772996978602,0.47682025,81.806,81.787,0.46559605]
[1772996980425,0.46871107,81.805,81.787,0.46559605]
[1772996980818,0.46871107,81.805,81.788,12.22673252]
[1772996981620,0.46871107,81.805,81.789,0.46559605]
[1772996985642,0.46871107,81.805,81.79,12.22643354]
[1772996990447,0.46871107,81.813,81.79,12.22643354]
[1772996990938,0.46871107,81.813,81.791,0.46559605]
[1772996992042,0.46871107,81.813,81.793,0.46559605]
[1772996992629,0.46871107,81.826,81.794,0.46559605]
[1772996992829,0.46871107,81.832,81.794,0.46559605]
[1772996993537,0.46871107,81.847,81.794,0.46559605]
[1772996993926,0.46871107,81.845,81.797,0.46559605]
[1772996997448,0.46871107,81.845,81.8,0.46559605]
[1772996999852,0.46871107,81.845,81.803,0.46559605]
[1772997001440,0.56871107,81.85,81.806,0.46559605]
[1772997002531,0.1,81.85,81.806,0.46559605]
[1772997003646,0.57651887,81.85,81.808,0.28432314]
[1772997003842,0.57651887,81.85,81.809,0.46237611]
[1772997005052,0.1,81.85,81.81,3.69383402]
[1772997005234,0.1,81.86,81.81,3.69383402]
[1772997005235,0.1,81.86,81.812,0.45254008]
[1772997006162,0.1,81.86,81.814,0.73686322]
[1772997006355,0.1,81.86,81.818,0.45254008]
[1772997006648,0.4886254,81.859,81.818,0.45254008]
[1772997008754,0.5886254,81.86,81.821,0.45254008]
[1772997011458,0.5886254,81.86,81.823,0.73686322]
[1772997011641,0.5886254,81.86,81.824,0.45254008]
[1772997013659,0.4886254,81.858,81.826,0.45254008]
[1772997013865,0.4886254,81.858,81.826,0.28432314]
[1772997014798,0.4886254,81.856,81.828,0.28432314]
[1772997015164,0.1,81.86,81.829,0.45254008]
[1772997015358,0.4886254,81.859,81.829,0.45254008]
[1772997016061,0.1,81.86,81.829,0.45254008]
[1772997016370,58.3,81.894,81.828,0.28432314]
[1772997016371,165.6,81.946,81.83,0.45254008]
[1772997016574,0.72100001,81.966,81.875,0.45254008]
[1772997016772,12.19840529,81.978,81.886,3.69383402]
[1772997017067,4.59057881,81.97,81.896,0.45254008]
[1772997017268,4.59057881,81.97,81.905,0.45254008]
[1772997017442,4.59057881,81.95,81.905,0.45254008]
[1772997017647,4.59057881,81.94,81.898,0.28432314]
[1772997017865,0.32550799,81.929,81.898,0.28432314]
[1772997018071,0.32550799,81.929,81.883,42.74391509]
[1772997018072,0.32550799,81.919,81.883,12.21254717]
[1772997018365,0.32550799,81.909,81.876,12.21348676]
[1772997018779,0.32550799,81.909,81.88,0.45254008]
[1772997019569,0.32550799,81.927,81.881,0.45254008]
[1772997019775,0.32550799,81.959,81.885,0.45254008]
[1772997019954,0.32550799,81.97,81.904,0.45254008]
[1772997020462,0.32550799,81.969,81.904,0.45254008]
[1772997020869,0.32550799,81.968,81.907,0.45254008]
[1772997021270,0.32550799,81.967,81.907,0.45254008]
[1772997022966,12.26679056,81.96,81.91,0.45254008]
[1772997023167,0.32550799,81.959,81.91,0.45254008]
[1772997024873,12.26679056,81.97,81.909,0.28432314]
[1772997024874,0.32550799,81.979,81.918,0.45254008]
[1772997025072,0.2495271,81.984,81.919,0.45254008]
[1772997025386,0.32550799,81.983,81.919,0.45254008]
[1772997025966,0.32550799,81.983,81.927,0.45254008]
[1772997026767,0.32550799,81.979,81.927,0.45254008]
[1772997026968,0.32550799,81.977,81.93,0.45254008]
[1772997028878,0.32550799,81.957,81.916,12.20762732]
[1772997029076,0.32550799,81.957,81.917,0.28432314]
[1772997029277,0.32550799,81.957,81.916,12.20762732]
[1772997029475,0.32550799,81.957,81.917,0.28432314]
[1772997029679,0.32550799,81.957,81.918,0.45254008]
[1772997029879,12.19993132,81.968,81.918,0.45254008]
[1772997030081,0.32550799,81.967,81.918,0.45254008]
[1772997030275,0.32550799,81.959,81.918,0.45254008]
[1772997031585,0.32550799,81.957,81.919,12.20718026]
[1772997032102,0.32550799,81.949,81.919,12.20718026]
[1772997032784,0.32550799,81.949,81.919,12.70510272]
[1772997033186,0.32550799,81.949,81.919,12.20718026]
[1772997034294,0.32550799,81.949,81.919,12.70510272]
[1772997034797,12.52749362,81.954,81.92,0.49792246]
[1772997035001,0.32550799,81.953,81.92,0.49792246]
[1772997035196,0.32550799,81.968,81.921,0.49792246]
[1772997035897,0.32550799,81.968,81.924,0.49792246]
[1772997036684,0.32550799,81.966,81.924,0.49792246]
[1772997038102,0.32550799,81.964,81.927,0.49792246]
[1772997038499,12.2003294,81.965,81.92,12.7049348]
[1772997038500,0.32550799,81.959,81.92,12.7049348]
[1772997038679,0.32550799,81.959,81.92,12.20701234]
[1772997038888,0.32550799,81.949,81.92,12.20701234]
[1772997039194,0.32550799,81.959,81.921,0.49792246]
[1772997041284,0.32550799,81.957,81.924,0.49792246]
[1772997042589,0.32550799,81.957,81.927,0.49792246]
[1772997042790,12.20084107,81.962,81.927,0.49792246]
[1772997043203,0.32550799,81.962,81.928,12.20583927]
[1772997043504,0.32550799,81.962,81.929,0.49792246]
[1772997043706,0.32550799,81.962,81.928,12.20583927]
[1772997044003,0.32550799,81.959,81.925,3.2]
[1772997044205,0.32550799,81.959,81.926,12.20613724]
[1772997045486,12.20137143,81.958,81.927,3.2]
[1772997045683,0.32550799,81.957,81.927,3.2]
[1772997046485,12.2526906,81.94,81.894,0.5]
[1772997046691,12.2526906,81.92,81.895,12.21075767]
[1772997047007,12.2526906,81.92,81.894,0.5]
[1772997047008,12.2526906,81.9,81.851,0.6]
[1772997047202,12.2526906,81.9,81.856,0.5]
[1772997047406,12.2526906,81.9,81.857,0.5]
[1772997047906,12.2526906,81.89,81.859,0.5]
[1772997048796,12.21016129,81.899,81.859,0.5]
[1772997049796,12.2526906,81.89,81.86,12.21597849]
[1772997049998,12.2526906,81.88,81.849,0.5]
[1772997050314,12.2526906,81.88,81.823,0.6]
[1772997050315,12.2526906,81.87,81.841,0.5]
[1772997051898,12.2526906,81.88,81.841,0.5]
[1772997052416,12.2526906,81.96,81.806,0.5]
[1772997052417,12.2526906,81.85,81.806,0.5]
[1772997052717,3.69383402,81.895,81.806,0.5]
[1772997052718,12.2526906,81.87,81.806,0.5]
[1772997052911,3.69383402,81.895,81.804,61.12134975]
[1772997052912,12.2526906,81.88,81.807,3.69383402]
[1772997053097,12.2526906,81.87,81.809,0.5]
[1772997054397,12.21463557,81.869,81.814,0.5]
[1772997054596,12.21463557,81.869,81.815,0.5]
[1772997057408,12.21463557,81.869,81.818,0.5]
[1772997057610,12.21463557,81.869,81.82,0.5]
[1772997059312,12.21463557,81.869,81.821,42.77630436]
[1772997059517,12.21463557,81.869,81.823,0.5]
[1772997060632,12.21463557,81.869,81.826,0.5]
[1772997060813,12.21463557,81.869,81.827,0.6]
[1772997061011,12.21463557,81.869,81.828,0.5]
[1772997061406,12.21463557,81.869,81.816,12.22250396]
[1772997061407,12.2526906,81.84,81.816,12.22250396]
[1772997061723,12.2526906,81.85,81.816,12.72250396]
[1772997062024,12.2526906,81.85,81.817,0.28432314]
[1772997062225,12.2526906,81.85,81.816,12.72250396]
[1772997062925,12.21762025,81.849,81.818,0.5]
[1772997063137,12.2526906,81.87,81.818,0.5]
[1772997063507,12.21209974,81.886,81.821,0.5]
[1772997063808,12.2526906,81.88,81.821,0.5]
[1772997064622,12.2526906,81.88,81.82,0.28432314]
[1772997064623,12.21314378,81.879,81.823,0.28432314]
[1772997064924,12.21314378,81.879,81.824,0.5]
[1772997065827,12.2526906,81.88,81.824,0.5]
[1772997066829,24.46570168,81.88,81.827,0.5]
[1772997067645,12.21104148,81.894,81.83,0.5]
[1772997069543,42.73556453,81.899,81.833,0.5]
[1772997069742,42.73556453,81.899,81.836,0.5]
[1772997070246,12.2526906,81.89,81.836,0.5]
[1772997070829,12.2526906,81.88,81.836,0.5]
[1772997072629,12.21314378,81.879,81.838,0.78432314]
[1772997072829,12.21314378,81.879,81.839,0.5]
[1772997074748,12.21314378,81.879,81.838,0.28432314]
[1772997074749,30.53079185,81.885,81.842,0.5]
[1772997074943,12.2526906,81.88,81.842,0.5]
[1772997076728,12.2526906,81.87,81.837,0.28432314]
[1772997077250,12.2526906,81.87,81.831,12.22019637]
[1772997078603,12.2526906,81.87,81.832,0.6]
[1772997080546,42.75122451,81.869,81.833,12.22000904]
[1772997080740,42.75122451,81.869,81.834,0.5]
[1772997081045,12.21463557,81.869,81.834,0.5]
[1772997081450,12.21329294,81.878,81.835,0.5]
[1772997083862,12.21329294,81.878,81.837,0.28432314]
[1772997084068,12.21329294,81.878,81.838,0.5]
[1772997085061,12.21329294,81.878,81.84,0.5]
[1772997086944,12.21329294,81.878,81.842,0.5]
[1772997087158,4.58420546,81.87,81.834,0.5]
[1772997087464,4.58420546,81.87,81.835,0.6]
[1772997087658,4.58420546,81.87,81.835,1.1]
[1772997088253,12.21329294,81.878,81.768,54.96]
[1772997088254,4.58420546,81.84,81.815,0.5]
[1772997088561,4.58420546,81.85,81.816,0.5]
[1772997089064,42.76167087,81.849,81.816,0.5]
[1772997090266,4.58420546,81.84,81.811,12.22328286]
[1772997091165,12.21911313,81.839,81.811,0.5]
[1772997093073,12.21911313,81.839,81.799,24.78867261]
[1772997093249,0.47762519,81.838,81.799,24.78867261]
[1772997093646,0.47762519,81.838,81.791,42.79199422]
[1772997095150,0.47762519,81.838,81.795,0.49169269]
[1772997095350,12.21941175,81.837,81.795,0.49169269]
[1772997096076,0.47762519,81.836,81.795,0.49169269]
[1772997096255,12.21941175,81.837,81.795,0.49169269]
[1772997096977,0.47762519,81.842,81.795,0.49169269]
[1772997097873,12.69643972,81.841,81.798,0.49169269]
[1772997098074,0.47762519,81.84,81.798,0.49169269]
[1772997098675,0.47762519,81.839,81.798,0.49169269]
[1772997100974,0.47762519,81.837,81.801,0.49169269]
[1772997102574,0.47762519,81.835,81.804,0.49169269]
[1772997103569,0.47762519,81.835,81.805,12.22419167]
[1772997103778,0.47762519,81.841,81.806,0.49169269]
[1772997105671,0.47762519,81.839,81.808,0.49169269]
[1772997107662,0.47762519,81.839,81.81,0.49169269]
[1772997109060,0.47762519,81.839,81.811,0.49169269]
[1772997110774,64.76208923,81.876,81.81,0.28432314]
[1772997110775,0.47762519,81.849,81.814,0.49169269]
[1772997111077,0.47762519,81.848,81.814,0.49169269]
[1772997113277,0.47762519,81.848,81.816,0.49169269]
[1772997114967,0.47762519,81.846,81.818,0.49169269]
[1772997117579,0.47762519,81.844,81.819,12.2221]
[1772997118182,0.47762519,81.844,81.82,0.49169269]
[1772997118675,0.47762519,81.844,81.822,0.49169269]
[1772997121281,0.47762519,81.844,81.824,0.49169269]
[1772997121469,0.47762519,81.851,81.824,0.49169269]
[1772997122271,12.69509617,81.85,81.824,0.49169269]
[1772997122470,0.47762519,81.849,81.824,0.49169269]
[1772997123468,0.47762519,81.849,81.826,0.45334321]
[1772997125792,0.47762519,81.849,81.827,12.22090508]
[1772997125964,0.47762519,81.849,81.828,0.48054428]
[1772997126387,12.69529565,81.849,81.828,0.48054428]
[1772997126579,0.4647242,81.848,81.828,0.48054428]
[1772997127982,0.4647242,81.848,81.83,0.48054428]
[1772997130782,0.4647242,81.848,81.832,0.48054428]
[1772997132184,12.21740956,81.851,81.834,0.48054428]
[1772997132492,12.68213376,81.851,81.834,0.48054428]
[1772997133190,0.4647242,81.85,81.834,0.48054428]
[1772997135387,0.4647242,81.855,81.836,0.48054428]
[1772997135887,0.4647242,81.864,81.835,12.21971039]
[1772997136466,0.4647242,81.864,81.835,12.70025467]
[1772997136677,0.4647242,81.864,81.836,0.48054428]
[1772997138577,0.4647242,81.862,81.838,0.48054428]
[1772997141582,12.21582927,81.861,81.84,0.48054428]
[1772997141787,12.68055347,81.861,81.84,0.48054428]
[1772997142283,12.21582927,81.861,81.84,0.48054428]
[1772997143199,12.21582927,81.861,81.842,0.48054428]
[1772997144307,0.4647242,81.859,81.827,0.48054428]
[1772997145205,0.4647242,81.857,81.829,0.48054428]
[1772997147584,0.4647242,81.855,81.83,12.22045704]
[1772997148605,0.4647242,81.855,81.829,0.48054428]
[1772997150802,0.4647242,81.853,81.829,0.48054428]
[1772997151180,0.4647242,81.853,81.825,12.22106427]
[1772997151382,0.4647242,81.853,81.826,0.48054428]
[1772997151905,4.58800988,81.86,81.826,0.48054428]
[1772997151906,0.4647242,81.851,81.826,0.48054428]
[1772997153105,0.4647242,81.851,81.828,0.49792159]
[1772997155491,0.48594348,81.863,81.83,0.49792159]
[1772997155694,0.48594348,81.862,81.83,0.49792159]
[1772997158622,4.58800988,81.87,81.832,0.49792159]
[1772997158623,0.48594348,81.86,81.832,0.49792159]
[1772997159716,0.48594348,81.859,81.832,0.49792159]
[1772997160810,0.48594348,81.862,81.834,0.49792159]
[1772997161820,0.48594348,81.862,81.833,12.22000904]
[1772997161821,0.48594348,81.86,81.836,0.49792159]
[1772997164516,0.48594348,81.858,81.836,0.49792159]
[1772997165318,0.48594348,81.858,81.838,0.49792159]
[1772997170202,0.48594348,81.856,81.838,0.49792159]
[1772997171302,12.21672469,81.855,81.819,0.49792159]
[1772997171515,0.48594348,81.854,81.819,0.49792159]
[1772997173631,0.48594348,81.854,81.822,0.49792159]
[1772997176834,0.48594348,81.854,81.825,0.49792159]
[1772997182033,0.48594348,81.854,81.827,0.49792159]
[1772997185522,0.48594348,81.854,81.801,104.9]
[1772997185523,0.45315706,81.849,81.802,0.47293449]
[1772997185828,12.2170232,81.853,81.802,0.47293449]
[1772997185829,0.45315706,81.839,81.802,0.47293449]
[1772997186136,0.45315706,81.829,81.803,0.47293449]
[1772997186642,0.45315706,81.819,81.794,0.47293449]
[1772997187827,0.45315706,81.817,81.795,12.22568616]
[1772997189942,0.45315706,81.817,81.795,0.47293449]
[1772997190341,0.45315706,81.809,81.783,0.47293449]
[1772997190539,0.45315706,81.809,81.783,12.70030119]
[1772997190742,0.45315706,81.809,81.777,0.47293449]
[1772997191124,0.45315706,81.809,81.778,12.22822764]
[1772997191330,0.45315706,81.809,81.779,0.47293449]
[1772997192245,0.3,81.807,81.779,0.47293449]
[1772997193543,4.58555866,81.8,81.779,0.47293449]
[1772997193742,0.3,81.799,81.774,0.47293449]
[1772997194426,12.22523778,81.798,81.774,0.47293449]
[1772997194650,0.3,81.797,81.774,0.47293449]
[1772997194849,0.3,81.797,81.776,0.47293449]
[1772997195049,0.3,81.801,81.776,0.47293449]
[1772997195350,0.3,81.809,81.776,0.47293449]
[1772997196155,0.3,81.808,81.776,0.47293449]
[1772997196754,0.3,81.808,81.77,0.2]
[1772997196755,12.2221,81.819,81.778,0.47293449]
[1772997197856,0.3,81.818,81.778,0.47293449]
[1772997198736,0.3,81.816,81.78,0.46045125]
[1772997201434,12.22269754,81.815,81.782,0.46045125]
[1772997201639,0.3,81.814,81.782,0.46045125]
[1772997204762,0.3,81.812,81.784,0.46045125]
[1772997207543,0.3,81.809,81.786,0.46045125]
[1772997207849,4.58555866,81.82,81.786,0.46045125]
[1772997208043,0.3,81.819,81.786,0.46045125]
[1772997209166,0.3,81.829,81.786,0.46045125]
[1772997209368,4.58555866,81.82,81.786,0.46045125]
[1772997210552,4.58555866,81.82,81.788,0.46045125]
[1772997211667,4.88555866,81.82,81.79,0.46045125]
[1772997212045,0.3,81.819,81.79,0.46045125]
[1772997213067,0.3,81.818,81.79,0.46045125]
[1772997213684,0.3,81.818,81.792,0.46568468]
[1772997214565,0.3,81.809,81.783,0.46568468]
[1772997214862,0.3,81.816,81.783,0.46568468]
[1772997215662,12.52269754,81.815,81.785,0.46568468]
[1772997215864,0.3,81.814,81.785,0.46568468]
[1772997216167,12.22269754,81.815,81.785,0.46568468]
[1772997216468,0.3,81.814,81.785,0.46568468]
[1772997219682,0.3,81.814,81.787,0.46568468]
[1772997221559,0.3,81.814,81.789,0.46568468]
[1772997223086,61.09907436,81.835,81.789,0.46568468]
[1772997223087,0.3,81.826,81.79,0.46568468]
[1772997223762,0.3,81.826,81.793,0.46568468]
[1772997225260,0.3,81.826,81.795,0.46568468]
[1772997227377,0.3,81.826,81.797,0.46568468]
[1772997227683,0.3,81.824,81.797,0.46568468]
[1772997230209,0.3,81.824,81.792,0.28432314]
[1772997230210,0.3,81.824,81.799,0.46568468]
[1772997230485,61.07002972,81.874,81.798,12.22523778]
[1772997230486,0.3,81.876,81.803,0.46568468]
[1772997230660,0.3,81.876,81.806,0.46568468]
[1772997230863,0.3,81.876,81.809,0.46568468]
[1772997231084,0.3,81.876,81.811,0.46568468]
[1772997231379,3.69383402,81.887,81.811,0.46568468]
[1772997231380,6.35207074,81.908,81.815,3.69383402]
[1772997231583,0.1,81.91,81.833,4.82477569]
[1772997231785,0.1,81.91,81.847,0.46568468]
[1772997232078,0.3,81.935,81.857,0.46568468]
[1772997232283,0.1,81.94,81.871,3.69383402]
[1772997232484,0.46583783,81.983,81.892,4.82477569]
[1772997232676,4.58988147,81.97,81.907,0.46568468]
[1772997232864,0.46583783,81.993,81.913,0.46568468]
[1772997233065,0.46583783,82.012,81.922,3.69383402]
[1772997233263,0.46583783,82.012,81.919,0.60784625]
[1772997233264,6.34738959,82.038,81.937,4.1595187]
[1772997233461,4.58988147,82.06,81.953,0.46568468]
[1772997233693,4.58988147,82.06,81.949,4.96693726]
[1772997233694,4.58988147,82.05,81.965,0.46568468]
[1772997233893,4.58988147,82.03,81.976,0.46568468]
[1772997234070,4.58988147,82.02,81.964,0.46568468]
[1772997234272,12.18657228,82.058,81.97,0.46568468]
[1772997234568,12.18657228,82.058,81.965,12.2003294]
[1772997234569,4.58988147,82.0,81.962,0.46568468]
[1772997234782,4.58988147,82.0,81.927,4.82477569]
[1772997234783,4.58988147,82.01,81.965,0.46568468]
[1772997234983,4.33321423,82.01,81.965,0.46568468]
[1772997235189,0.13416217,82.012,81.965,0.46568468]
[1772997235366,0.13416217,82.027,81.965,0.46568468]
[1772997235670,0.13416217,82.019,81.965,0.46568468]
[1772997236265,0.13416217,82.027,81.968,0.46568468]
[1772997236466,12.23807265,82.04,81.971,0.46568468]
[1772997236887,0.13416217,82.039,81.971,0.46568468]
[1772997237065,0.13416217,82.029,81.971,0.46568468]
[1772997237266,0.13416217,82.009,81.971,0.46568468]
[1772997237882,0.13416217,82.036,81.971,0.46568468]
[1772997238079,0.13416217,82.029,81.971,0.46568468]
[1772997238480,0.13416217,82.029,81.974,0.46568468]
[1772997238779,12.23807265,82.03,81.974,0.46568468]
[1772997239377,0.13416217,82.059,81.982,4.82477569]
[1772997239580,0.13416217,82.059,81.988,0.46568468]
[1772997240289,0.13416217,82.049,81.988,0.46568468]
[1772997240488,12.23807265,82.08,81.988,0.46568468]
[1772997240489,0.13416217,82.029,81.988,0.46568468]
[1772997243085,12.32497273,82.029,81.988,0.46568468]
[1772997243287,12.23807265,82.02,81.988,0.46568468]
[1772997243488,0.13416217,82.028,81.988,0.46568468]
[1772997243787,0.13416217,82.081,81.988,0.46568468]
[1772997243979,0.13416217,82.081,81.977,4.82477569]
[1772997243980,12.23807265,82.07,81.994,0.470073]
[1772997244184,0.13416217,82.078,81.996,0.75439614]
[1772997244384,12.23807265,82.08,82.007,0.470073]
[1772997244588,6.34269633,82.11,82.011,0.470073]
[1772997244778,12.17788468,82.117,82.025,4.82477569]
[1772997244968,0.13416217,82.127,82.049,0.49623587]
[1772997245174,12.17303947,82.149,82.053,4.82477569]
[1772997245367,12.23807265,82.13,82.06,0.49623587]
[1772997245585,0.13416217,82.119,82.06,0.49623587]
[1772997245892,12.23807265,82.11,82.06,0.49623587]